lending/lending_fUSD_20251022
["ID","MTS","AMOUNT","RATE_DAILY","PERIOD"]
[392073959,1761136289515,-150.0,0.001,120]
[392073960,1761136289524,-160.0,0.001,2]
[392073961,1761136289533,-150.0,0.001,2]
[392073962,1761136289543,-166.0,0.001,2]
[392073963,1761136289551,-289.04,0.00104542,120]
[392073964,1761136289560,-5000.0,0.001049,120]
[392073965,1761136289570,-1639.9511,0.001084,88]
[392073966,1761136289579,-5000.0,0.00109,120]
[392073967,1761136289588,-537.076,0.0011,120]
[392073968,1761136289598,-289.04,0.00111031,120]
[392073969,1761136289607,-289.04,0.0011752,120]
[392073970,1761136289616,-5000.0,0.00119,120]
[392073971,1761136289625,-1626.74190838,0.00123215,120]
[392073972,1761136289635,-289.04,0.00124009,120]
[392073973,1761136289644,-2000.0,0.001265,63]
[392073974,1761136289654,-2500.0,0.00129,120]
[392073975,1761136289664,-289.04,0.00130497,120]
[392073976,1761136289674,-2000.0,0.001356,55]
[392073977,1761136289685,-289.04,0.00136986,120]
[392073978,1761136289694,-2500.0,0.00139,120]
[392073979,1761136289704,-3101.88,0.00142,120]
[392073980,1761136289715,-2500.0,0.00149,120]
[392073981,1761136289724,-2000.0,0.0015,120]
[392073982,1761136289734,-1138.16879502,0.0015,120]
[392073983,1761136289743,-302.9020474,0.0015,120]
[392073984,1761136289752,-177.19183995,0.0015,2]
[392073985,1761136289762,-150.0,0.0015,120]
[392073986,1761136289772,-2500.0,0.00159,120]
[392073987,1761136289782,-2000.0,0.001685,51]
[392073988,1761136289792,-1717.4637,0.0017829,117]
[392073989,1761136289801,-2500.0,0.00179,120]
[392073990,1761136289810,-1517.8578679,0.0018,7]
[392073991,1761136289819,-156.76,0.0018,60]
[392073992,1761136289828,-2000.0,0.001865,62]
[392073993,1761136289837,-150.0,0.0019,120]
[392073994,1761136289847,-58823.7473652,0.00190049,60]
[392073995,1761136289856,-49946.6092729,0.00193845,60]
[392073996,1761136289867,-150.0,0.001982,120]
[392073997,1761136289877,-1498.0,0.001999,120]
[392073998,1761136289886,-2500.0,0.002,120]
[392073999,1761136289896,-150.0,0.002,120]
[392074000,1761136289906,-1000.0,0.002,120]
[392074001,1761136289915,-2000.0,0.002,7]
[392074002,1761136289924,-334.01,0.002,120]
[392074003,1761136289934,-500.0,0.002,28]
[392074004,1761136289944,-500.0,0.002,28]
[392074005,1761136289953,-500.0,0.002,31]
[392074006,1761136289962,-500.0,0.002,29]
[392074007,1761136289971,-150.0,0.002,120]
[392074008,1761136289981,-1460.99330462,0.002,30]
[392074009,1761136289991,-343.36676623,0.002,30]
[392074010,1761136290000,-4045.26,0.002,30]
[392074011,1761136290010,-1000.0,0.00209,120]
[392074012,1761136290019,-217.11507962,0.0021,10]
[392074013,1761136290029,-1626.74190838,0.00221429,120]
[392074014,1761136290039,-2000.0,0.002244,65]
[392074015,1761136290048,-2000.0,0.002453,55]
[392074016,1761136290058,-1000.0,0.00249,120]
[392074017,1761136290068,-2500.0,0.0025,120]
[392074018,1761136290077,-1000.0,0.0025,120]
[392074019,1761136290087,-339.4409012,0.0025,10]
[392074020,1761136290097,-1429.69450971,0.002574,120]
[392074021,1761136290106,-2500.0,0.002653,61]
[392074022,1761136290115,-3000.0,0.002654,55]
[392074023,1761136290125,-2375.81162748,0.002701,120]
[392074024,1761136290135,-156.0,0.00273,120]
[392074025,1761136290144,-500.0,0.00274747,120]
[392074026,1761136290153,-1962.571,0.00279,91]
[392074027,1761136290162,-2000.0,0.002869,59]
[392074028,1761136290172,-150.0,0.0029,120]
[392074029,1761136290181,-58823.7473652,0.00290333,90]
[392074030,1761136290191,-49946.6092729,0.00293589,90]
[392074031,1761136290200,-2000.0,0.002963,49]
[392074032,1761136290209,-1000.0,0.00299999,120]
[392074033,1761136290219,-3000.0,0.003,120]
[392074034,1761136290229,-10000.0,0.003,90]
[392074035,1761136290238,-500.0,0.003,120]
[392074036,1761136290248,-30000.0,0.003,120]
[392074037,1761136290257,-1000.0,0.003,120]
[392074038,1761136290266,-396.0,0.003,120]
[392074039,1761136290275,-1256.03364639,0.003,120]
[392074040,1761136290284,-1881.59187,0.0031,106]
[392074041,1761136290293,-1000.0,0.00319,120]
[392074042,1761136290302,-1626.74190838,0.00319644,120]
[392074043,1761136290311,-152.0,0.003232,120]
[392074044,1761136290320,-160.37298754,0.00325,30]
[392074045,1761136290329,-3000.0,0.003268,61]
[392074046,1761136290339,-500.0,0.0035,120]
[392074047,1761136290348,-200.0,0.0035,20]
[392074048,1761136290357,-3000.0,0.0035,120]
[392074049,1761136290367,-2000.0,0.003521,55]
[392074050,1761136290380,-198.0,0.00355,14]
[392074051,1761136290390,-2000.0,0.003698,61]
[392074052,1761136290400,-8170.405,0.003788,120]
[392074053,1761136290409,-32969.94,0.00383,120]
[392074054,1761136290420,-500.0,0.00389,120]
[392074055,1761136290429,-150.0,0.0039,120]
[392074056,1761136290440,-49946.6092729,0.0039672,120]
[392074057,1761136290452,-58823.7473652,0.00397097,120]
[392074058,1761136290461,-1398.0,0.0039899,120]
[392074059,1761136290470,-3500.0,0.004,120]
[392074060,1761136290480,-150.0,0.004,120]
[392074061,1761136290491,-10000.0,0.004,90]
[392074062,1761136290500,-500.0,0.004,120]
[392074063,1761136290510,-1626.74190838,0.00417858,120]
[392074064,1761136290520,-2000.0,0.0042,120]
[392074065,1761136290530,-151.0,0.004323,120]
[392074066,1761136290541,-237.49495676,0.00434,120]
[392074067,1761136290549,-1500.0,0.004369,51]
[392074068,1761136290559,-20000.0,0.00444,30]
[392074069,1761136290569,-2000.0,0.004444,61]
[392074070,1761136290579,-3500.0,0.0045,120]
[392074071,1761136290590,-500.0,0.0045,120]
[392074072,1761136290600,-2018.83105,0.00452826,115]
[392074073,1761136290610,-717.14443444,0.00456,120]
[392074074,1761136290621,-12106.1853622,0.0045885,120]
[392074075,1761136290631,-500.0,0.0047474,120]
[392074076,1761136290641,-13608.489999,0.004788,120]
[392074077,1761136290650,-2141.8,0.0048,120]
[392074078,1761136290660,-2000.0,0.004865,50]
[392074079,1761136290669,-150.0,0.0049,120]
[392074080,1761136290679,-5678.64198347,0.0049,120]
[392074081,1761136290688,-58823.7473652,0.00493819,120]
[392074082,1761136290698,-2000.0,0.00498,100]
[392074083,1761136290708,-49946.6092729,0.00498068,120]
[392074084,1761136290718,-40066.8624088,0.00498171,120]
[392074085,1761136290728,-1000.0,0.0049999,120]
[392074086,1761136290738,-4000.0,0.005,120]
[392074087,1761136290747,-474.4781532,0.005,2]
[392074088,1761136290757,-1000.0,0.005,2]
[392074089,1761136290766,-10000.0,0.005,90]
[392074090,1761136290776,-500.0,0.005,120]
[392074091,1761136290785,-5000.0,0.0051,120]
[392074092,1761136290794,-1626.74190838,0.00516072,120]
[392074093,1761136290803,-5000.0,0.0052,120]
[392074094,1761136290812,-153.0,0.00523,120]
[392074095,1761136290821,-5000.0,0.00525,120]
[392074096,1761136290832,-1987.760322,0.00529152,90]
[392074097,1761136290841,-4000.0,0.0053,120]
[392074098,1761136290850,-5000.0,0.00535,120]
[392074099,1761136290861,-500.0,0.00539,120]
[392074100,1761136290870,-4226.03897444,0.0054,120]
[392074101,1761136290879,-964.78,0.00543,120]
[392074102,1761136290890,-3000.0,0.005436,62]
[392074103,1761136290899,-4000.0,0.0055,120]
[392074104,1761136290909,-500.0,0.0055,120]
[392074105,1761136290918,-5000.0,0.00555,120]
[392074106,1761136290927,-1000.0,0.00569,61]
[392074107,1761136290936,-150.0,0.00576,120]
[392074108,1761136290946,-13608.49,0.005788,120]
[392074109,1761136290955,-4000.0,0.0058,120]
[392074110,1761136290966,-150.0,0.0059,120]
[392074111,1761136290975,-20618.62161374,0.0059,30]
[392074112,1761136290985,-150.0,0.0059,120]
[392074113,1761136290996,-49946.6092729,0.00592213,120]
[392074114,1761136291005,-58823.7473652,0.00593536,120]
[392074115,1761136291016,-15219.22323887,0.00595,120]
[392074116,1761136291026,-3376.379793,0.0059601,84]
[392074117,1761136291036,-5000.0,0.00598,120]
[392074118,1761136291046,-6760.91517721,0.006,30]
[392074119,1761136291056,-150.0,0.006,120]
[392074120,1761136291065,-5000.0,0.006,120]
[392074121,1761136291075,-2893.00741719,0.006,120]
[392074122,1761136291084,-1540.0,0.006,120]
[392074123,1761136291094,-1500.0,0.006,120]
[392074124,1761136291104,-1500.0,0.006,120]
[392074125,1761136291113,-1500.0,0.006,120]
[392074126,1761136291123,-1500.0,0.006,120]
[392074127,1761136291132,-1500.0,0.006,120]
[392074128,1761136291142,-1500.0,0.006,120]
[392074129,1761136291151,-1500.0,0.006,120]
[392074130,1761136291160,-1500.0,0.006,120]
[392074131,1761136291170,-1500.0,0.006,120]
[392074132,1761136291180,-360.0,0.006,120]
[392074133,1761136291189,-1197.28226448,0.006,120]
[392074134,1761136291199,-11451.93810995,0.006,120]
[392074135,1761136291209,-500.0,0.006,120]
[392074136,1761136291219,-1000.0,0.006,120]
[392074137,1761136291229,-171384.44097073,0.006,120]
[392074138,1761136291239,-4298.99,0.0061,120]
[392074139,1761136291248,-4000.0,0.0061,120]
[392074140,1761136291258,-6010.0,0.0061,120]
[392074141,1761136291267,-1626.74190838,0.00614287,120]
[392074142,1761136291277,-5000.0,0.0062,120]
[392074143,1761136291287,-3158.83102311,0.00626,120]
[392074144,1761136291296,-4000.0,0.0063,120]
[392074145,1761136291306,-5000.0,0.0063,120]
[392074146,1761136291318,-5000.0,0.0063,120]
[392074147,1761136291328,-3810.0,0.00636,120]
[392074148,1761136291338,-2879.10090929,0.0064,120]
[392074149,1761136291347,-647.4,0.0064,120]
[392074150,1761136291357,-5000.0,0.00646,120]
[392074151,1761136291367,-1000.0,0.00649999,120]
[392074152,1761136291380,-12853.78760016,0.0065,45]
[392074153,1761136291390,-4000.0,0.0065,120]
[392074154,1761136291400,-2255100.05244276,0.0065,120]
[392074155,1761136291410,-151.0,0.006538,120]
[392074156,1761136291422,-1500.00062471,0.006539,48]
[392074157,1761136291432,-2000.0,0.00658,63]
[392074158,1761136291442,-500.0,0.00659,120]
[392074159,1761136291452,-250.0,0.0066,120]
[392074160,1761136291462,-4000.0,0.0067,120]
[392074161,1761136291472,-417.32852222,0.0067,120]
[392074162,1761136291481,-380.00362792,0.0067,112]
[392074163,1761136291491,-5000.0,0.00676,120]
[392074164,1761136291500,-16400.0,0.006788,120]
[392074165,1761136291510,-150.0,0.0068,120]
[392074166,1761136291520,-45736.32827442,0.006855,120]
[392074167,1761136291531,-5000.0,0.00686,120]
[392074168,1761136291540,-549.999999,0.00687,120]
[392074169,1761136291551,-2500.0,0.00689,62]
[392074170,1761136291560,-2000.0,0.00689,62]
[392074171,1761136291571,-3000010.0,0.006899,120]
[392074172,1761136291582,-1304.23,0.00689951,30]
[392074173,1761136291592,-4000.0,0.0069,120]
[392074174,1761136291602,-6640.62539278,0.0069,120]
[392074175,1761136291612,-17731.90577106,0.0069,120]
[392074176,1761136291627,-200.0,0.0069,120]
[392074177,1761136291646,-2495.54875185,0.0069,120]
[392074178,1761136291656,-27294.66270685,0.0069,120]
[392074179,1761136291667,-1500.0,0.00694,100]
[392074180,1761136291677,-24973.3046365,0.00696127,120]
[392074181,1761136291688,-29411.8736826,0.00696523,120]
[392074182,1761136291698,-6150.67788175,0.006969,120]
[392074183,1761136291708,-2500.0,0.00698,75]
[392074184,1761136291718,-10000.0,0.006987,120]
[392074185,1761136291729,-94500.0,0.00698987,120]
[392074186,1761136291739,-1000.0,0.00699999,120]
[392074187,1761136291749,-209.83,0.007,120]
[392074188,1761136291759,-2000.0,0.007,120]
[392074189,1761136291769,-150.0,0.007,2]
[392074190,1761136291780,-5046.13460262,0.007,2]
[392074191,1761136291791,-10000.0,0.007,90]
[392074192,1761136291802,-39817.28047139,0.007,120]
[392074193,1761136291812,-10000.0,0.007,120]
[392074194,1761136291823,-10000.0,0.007,120]
[392074195,1761136291835,-10000.0,0.007,120]
[392074196,1761136291846,-10000.0,0.007,120]
[392074197,1761136291856,-10000.0,0.007,120]
[392074198,1761136291866,-10000.0,0.007,120]
[392074199,1761136291875,-10000.0,0.007,120]
[392074200,1761136291886,-10000.0,0.007,120]
[392074201,1761136291895,-10000.0,0.007,120]
[392074202,1761136291905,-10000.0,0.007,120]
[392074203,1761136291915,-10000.0,0.007,120]
[392074204,1761136291924,-10000.0,0.007,120]
[392074205,1761136291935,-10000.0,0.007,120]
[392074206,1761136291946,-1626.74190838,0.00712557,120]
[392074207,1761136291956,-1000.0,0.00719999,120]
[392074208,1761136291966,-2000.0,0.0072,120]
[392074209,1761136291976,-16400.0,0.0072,120]
[392074210,1761136291986,-10816.979999,0.0072,120]
[392074211,1761136291997,-16400.0,0.0073,120]
[392074212,1761136292007,-10816.979999,0.0073,120]
[392074213,1761136292017,-10816.979999,0.007388,120]
[392074214,1761136292026,-1000.0,0.00739999,120]
[392074215,1761136292036,-2000.0,0.0074,120]
[392074216,1761136292046,-20000.0,0.0074,120]
[392074217,1761136292055,-16400.0,0.00743,120]
[392074218,1761136292065,-10816.979999,0.00743,120]
[392074219,1761136292076,-2000.0,0.00744,62]
[392074220,1761136292086,-16400.0,0.00747,120]
[392074221,1761136292097,-10816.979999,0.00747,120]
[392074222,1761136292107,-500.0,0.0074747,120]
[392074223,1761136292118,-1000.0,0.00749899,120]
[392074224,1761136292193,-977.7267882,0.000346,2]
[392074225,1761136293607,-256.56,0.000343,60]
[392074226,1761136293654,-300.0,0.00034578,120]
[392074227,1761136293699,-2500.0,0.00034578,120]
[392074228,1761136293744,-2500.0,0.00034578,120]
[392074229,1761136293788,-2500.0,0.00034578,120]
[392074230,1761136293833,-300.0,0.00038036,120]
[392074231,1761136293876,-2500.0,0.00038036,120]
[392074232,1761136293920,-726.67837332,0.000381,33]
[392074233,1761136293964,-2499.99,0.0004,120]
[392074234,1761136294007,-2499.99,0.0004,120]
[392074235,1761136294051,-563.08,0.0004,120]
[392074236,1761136294095,-2500.0,0.0004,120]
[392074237,1761136294141,-1198.9,0.0004,120]
[392074238,1761136294184,-1582.13,0.0004,120]
[392074239,1761136294224,-2500.0,0.000405,120]
[392074240,1761136294264,-4083.64163426,0.00041,30]
[392074241,1761136294304,-2500.0,0.00041,120]
[392074242,1761136294343,-1093.6,0.00041494,30]
[392074243,1761136294383,-151.22,0.00041494,30]
[392074244,1761136294424,-160.6,0.00041494,30]
[392074245,1761136294463,-168.43,0.00041494,30]
[392074246,1761136294504,-150.0,0.00041494,30]
[392074247,1761136294549,-696.1,0.00041494,30]
[392074248,1761136294591,-475.34,0.00041494,30]
[392074249,1761136294636,-315.43,0.00041494,30]
[392074250,1761136294677,-696.1,0.00041494,30]
[392074251,1761136294719,-168.43,0.00041494,30]
[392074252,1761136294760,-475.34,0.00041494,30]
[392074253,1761136294799,-150.0,0.00041494,30]
[392074254,1761136294838,-475.34,0.00041494,30]
[392074255,1761136294880,-696.1,0.00041494,30]
[392074256,1761136294923,-168.43,0.00041494,30]
[392074257,1761136294964,-150.0,0.00041494,30]
[392074258,1761136295009,-168.43,0.00041494,30]
[392074259,1761136295052,-696.1,0.00041494,30]
[392074260,1761136295096,-3141.01,0.000415,30]
[392074261,1761136295140,-2500.0,0.000415,120]
[392074262,1761136295184,-2500.0,0.00042,120]
[392074263,1761136295226,-2500.0,0.000425,120]
[392074264,1761136295268,-174.0,0.00043,90]
[392074265,1761136295311,-2500.0,0.00043,120]
[392074266,1761136295354,-2500.0,0.000435,120]
[392074267,1761136295401,-1000.0,0.000438,30]
[392074268,1761136295444,-521.48788849,0.00043835,120]
[392074269,1761136295486,-272.23402845,0.00043835,120]
[392074270,1761136295528,-500.0,0.00043835,120]
[392074271,1761136295573,-505.89,0.00043835,120]
[392074272,1761136295618,-500.0,0.00043835,120]
[392074273,1761136295662,-500.0,0.00043835,120]
[392074274,1761136295704,-500.0,0.00043835,120]
[392074275,1761136295746,-500.0,0.00043835,120]
[392074276,1761136295785,-500.0,0.00043835,120]
[392074277,1761136295826,-500.0,0.00043835,120]
[392074278,1761136295866,-500.0,0.00043835,120]
[392074279,1761136295918,-500.0,0.00043835,120]
[392074280,1761136295958,-506.04185071,0.00043835,120]
[392074281,1761136296074,-509.93822975,0.00043835,120]
[392074282,1761136296117,-514.17189411,0.00043835,120]
[392074283,1761136296158,-501.61404296,0.00043835,120]
[392074284,1761136296200,-397.12647058,0.00043835,120]
[392074285,1761136296245,-500.0,0.00043835,120]
[392074286,1761136296287,-500.0,0.00043835,120]
[392074287,1761136296332,-523.03142001,0.00043835,120]
[392074288,1761136296378,-500.0,0.00043835,120]
[392074289,1761136296422,-508.45750766,0.00043835,120]
[392074290,1761136296463,-552.14159771,0.00043835,120]
[392074291,1761136296508,-509.94159169,0.00043835,120]
[392074292,1761136296552,-500.0,0.00043835,120]
[392074293,1761136296595,-500.0,0.00043835,120]
[392074294,1761136296637,-516.18661238,0.00043835,120]
[392074295,1761136296679,-500.0,0.00043835,120]
[392074296,1761136296720,-529.6903537,0.00043835,120]
[392074297,1761136296759,-500.0,0.00043835,120]
[392074298,1761136296799,-522.11307165,0.00043835,120]
[392074299,1761136296839,-500.0,0.00043835,120]
[392074300,1761136296880,-500.0,0.00043835,120]
[392074301,1761136296921,-505.25913195,0.00043835,120]
[392074302,1761136296962,-500.0,0.00043835,120]
[392074303,1761136297004,-500.0,0.00043835,120]
[392074304,1761136297048,-163.30685073,0.00043835,120]
[392074305,1761136297088,-506.75408006,0.00043835,120]
[392074306,1761136297128,-500.0,0.00043835,120]
[392074307,1761136297168,-506.23404773,0.00043835,120]
[392074308,1761136297212,-500.0,0.00043835,120]
[392074309,1761136297255,-823.14,0.00043835,120]
[392074310,1761136297297,-500.0,0.00043835,120]
[392074311,1761136297341,-513.01527982,0.00043835,120]
[392074312,1761136297384,-500.0,0.00043835,120]
[392074313,1761136297427,-500.0,0.00043835,120]
[392074314,1761136297468,-592.56100663,0.00043835,120]
[392074315,1761136297511,-511.91450878,0.00043835,120]
[392074316,1761136297551,-506.70772373,0.00043835,120]
[392074317,1761136297591,-529.67374856,0.00043835,120]
[392074318,1761136297632,-494.75278531,0.00043835,120]
[392074319,1761136297671,-500.0,0.00043835,120]
[392074320,1761136297711,-509.99629819,0.00043835,120]
[392074321,1761136297748,-500.0,0.00043835,120]
[392074322,1761136297788,-564.17,0.00043889,120]
[392074323,1761136297829,-531.30493875,0.00043889,120]
[392074324,1761136297869,-610.82,0.00043889,120]
[392074325,1761136297910,-500.0,0.00043889,120]
[392074326,1761136297951,-1000.0,0.00043889,120]
[392074327,1761136297994,-2500.0,0.00044,120]
[392074328,1761136298037,-451.22,0.00044109,120]
[392074329,1761136298079,-501.47,0.00044109,120]
[392074330,1761136298119,-157.01,0.00044109,120]
[392074331,1761136298161,-823.14,0.00044109,120]
[392074332,1761136298203,-564.17,0.00044163,120]
[392074333,1761136298245,-610.82,0.00044163,120]
[392074334,1761136298287,-500.0,0.00044163,120]
[392074335,1761136298330,-297.10898409,0.00044163,120]
[392074336,1761136298375,-823.14,0.00044383,120]
[392074337,1761136298418,-564.17,0.00044437,120]
[392074338,1761136298462,-610.82,0.00044437,120]
[392074339,1761136298503,-500.0,0.00044437,120]
[392074340,1761136298545,-2500.0,0.000445,120]
[392074341,1761136298587,-3141.01,0.000446,30]
[392074342,1761136298629,-823.14,0.00044657,120]
[392074343,1761136298671,-564.17,0.00044711,120]
[392074344,1761136298715,-610.82,0.00044711,120]
[392074345,1761136298757,-246.68308108,0.00044711,120]
[392074346,1761136298799,-174.0,0.00044877,90]
[392074347,1761136298842,-823.14,0.00044931,120]
[392074348,1761136298886,-564.17,0.00044985,120]
[392074349,1761136298930,-610.82,0.00044985,120]
[392074350,1761136298974,-2500.0,0.00045,120]
[392074351,1761136299017,-823.14,0.00045205,120]
[392074352,1761136299060,-564.17,0.00045259,120]
[392074353,1761136299103,-610.82,0.00045259,120]
[392074354,1761136299148,-823.14,0.00045479,120]
[392074355,1761136299193,-2500.0,0.000455,120]
[392074356,1761136299234,-564.17,0.00045533,120]
[392074357,1761136299277,-610.82,0.00045533,120]
[392074358,1761136299320,-823.14,0.00045753,120]
[392074359,1761136299364,-564.17,0.00045807,120]
[392074360,1761136299413,-610.82,0.00045807,120]
[392074361,1761136299457,-3141.01,0.000459,30]
[392074362,1761136299496,-600000.0,0.00046,120]
[392074363,1761136299536,-900000.0,0.00046,120]
[392074364,1761136299576,-823.14,0.00046027,120]
[392074365,1761136299616,-564.17,0.00046081,120]
[392074366,1761136299658,-610.82,0.00046081,120]
[392074367,1761136299701,-151.0,0.0004612,120]
[392074368,1761136299742,-241.404605,0.0004612,120]
[392074369,1761136299785,-823.14,0.00046301,120]
[392074370,1761136299828,-564.17,0.00046355,120]
[392074371,1761136299871,-610.82,0.00046355,120]
[392074372,1761136299917,-823.14,0.00046575,120]
[392074373,1761136299959,-564.17,0.00046629,120]
[392074374,1761136300002,-610.82,0.00046629,120]
[392074375,1761136300044,-823.14,0.00046849,120]
[392074376,1761136300088,-564.17,0.00046903,120]
[392074377,1761136300129,-610.82,0.00046903,120]
[392074378,1761136300172,-3141.01,0.000471,30]
[392074379,1761136300215,-823.14,0.00047123,120]
[392074380,1761136300262,-564.17,0.00047177,120]
[392074381,1761136300310,-610.82,0.00047177,120]
[392074382,1761136300357,-151.0,0.0004718,120]
[392074383,1761136300403,-836.49,0.00047397,120]
[392074384,1761136300447,-823.14,0.00047397,120]
[392074385,1761136300487,-564.17,0.00047451,120]
[392074386,1761136300527,-610.82,0.00047451,120]
[392074387,1761136300567,-836.49,0.00047671,120]
[392074388,1761136300607,-823.14,0.00047671,120]
[392074389,1761136300646,-564.17,0.00047725,120]
[392074390,1761136300688,-610.82,0.00047725,120]
[392074391,1761136300728,-836.49,0.00047945,120]
[392074392,1761136300768,-823.14,0.00047945,120]
[392074393,1761136300807,-564.17,0.00047999,120]
[392074394,1761136300849,-610.82,0.00047999,120]
[392074395,1761136300887,-151.0,0.00048,120]
[392074396,1761136300929,-836.49,0.00048219,120]
[392074397,1761136300969,-823.14,0.00048219,120]
[392074398,1761136301011,-564.17,0.00048273,120]
[392074399,1761136301053,-610.82,0.00048273,120]
[392074400,1761136301094,-3141.01,0.000484,30]
[392074401,1761136301136,-836.49,0.00048493,120]
[392074402,1761136301179,-823.14,0.00048493,120]
[392074403,1761136301224,-564.17,0.00048547,120]
[392074404,1761136301269,-610.82,0.00048547,120]
[392074405,1761136301312,-836.49,0.00048767,120]
[392074406,1761136301352,-823.14,0.00048767,120]
[392074407,1761136301395,-564.17,0.00048821,120]
[392074408,1761136301437,-610.82,0.00048821,120]
[392074409,1761136301479,-836.49,0.00049041,120]
[392074410,1761136301521,-823.14,0.00049041,120]
[392074411,1761136301561,-564.17,0.00049095,120]
[392074412,1761136301603,-610.82,0.00049095,120]
[392074413,1761136301647,-836.49,0.00049315,120]
[392074414,1761136301686,-823.14,0.00049315,120]
[392074415,1761136301735,475.34,0.00041494,30]
[392074416,1761136301793,500.0,0.00043835,120]
[392074417,1761136301838,500.0,0.00043835,120]
[392074418,1761136301891,500.0,0.00044109,120]
[392074419,1761136301944,150.0,0.00041494,30]
[392074420,1761136301993,500.0,0.00044383,120]
[392074421,1761136302044,507.79481713,0.00043835,120]
[392074422,1761136302090,500.0,0.00044657,120]
[392074423,1761136302138,1662.84,0.00035,120]
[392074424,1761136302195,575.63702773,0.00043835,120]
[392074425,1761136302267,469.21980212,0.00044931,120]
[392074426,1761136302314,500.0,0.00043835,120]
[392074427,1761136302360,696.1,0.00041494,30]
[392074428,1761136302412,168.43,0.00041494,30]
[392074429,1761136302461,589.11393809,0.00043835,120]
[392074430,1761136302512,500.0,0.00043835,120]
[392074431,1761136302559,500.0,0.00043835,120]
[392074432,1761136302614,525.70818251,0.00043835,120]
[392074433,1761136302667,167.28,0.00041494,30]
[392074434,1761136302879,509.23204148,0.00043835,120]
[392074435,1761136302931,696.1,0.00041494,30]
[392074436,1761136302980,510.93028809,0.00043835,120]
[392074437,1761136303030,512.76701313,0.00043835,120]
[392074438,1761136303082,518.35213056,0.00043835,120]
[392074439,1761136303129,500.0,0.00043835,120]
[392074440,1761136303178,2500.0,0.000405,120]
[392074441,1761136303232,500.0,0.00043835,120]
[392074442,1761136303279,696.1,0.00041494,30]
[392074443,1761136303340,217.678238,0.000464,90]
[392074444,1761136303389,500.0,0.00043835,120]
[392074445,1761136303446,500.0,0.00043835,120]
[392074446,1761136303490,217.678238,0.00047,60]
[392074447,1761136303547,500.0,0.00043835,120]
[392074448,1761136303595,696.1,0.00041494,30]
[392074449,1761136303638,161.302127,0.000464,90]
[392074450,1761136303683,163.669358,0.000464,90]
[392074451,1761136303727,161.302127,0.00047,60]
[392074452,1761136303771,536.46471441,0.00043835,120]
[392074453,1761136303814,150.0,0.00045345,120]
[392074454,1761136303858,163.669358,0.00047,60]
[392074455,1761136303901,161.302127,0.000475,30]
[392074456,1761136303948,293.063254,0.000464,90]
[392074457,1761136304002,163.669358,0.000475,30]
[392074458,1761136304051,10000.0,0.00048305,120]